Cogmind - Beta 11 X9 @@@ ROGUE MODE // 2022.01.10 @ 13:29:10 // Winter2021/Sauler Player: youngster Result: Destroyed self with Rocket Launcher Performance ------------- Evolutions (0) 0 Regions Visited (2) 400 Robots Destroyed (40) 200 Value Destroyed (968) 968 Prototype IDs (3) 60 Alien Tech Used (0) 0 Bonus (-128) -128 TOTAL SCORE: 1500 Bonus ------- Friendly Fire -128 Cogmind --------- Core Integrity 0/250 Matter 264/300 Energy 65/250 System Corruption 0% Temperature Cool (26) Movement Rolling (145) Ox3 Location -10/Mines Parts ------- > --- POWER (1) -------- Ion Engine > --- PROPULSION (2) --- Compact Wheel > --- UTILITY (2) ------ High-capacity Storage Unit Targeting Computer > --- WEAPON (2) ------- Small Laser Rocket Launcher > --- INVENTORY (20) --- Heat Sink Small Battery (100) High-capacity Matter Pod (200) Weight Redist. System Improved Terrain Scanner Weapon Shielding Weapon Shielding Grenade Launcher Signal Generator Peak State ------------ > --- POWER ------------ Light Nuclear Core > --- PROPULSION ------- Light Treads Wheel > --- UTILITY ---------- High-capacity Storage Unit Targeting Computer > --- WEAPON ----------- Small Laser Assault Rifle > --- INVENTORY -------- Ion Engine Compact Wheel Heat Sink Small Battery High-capacity Matter Pod Weight Redist. System Improved Terrain Scanner Weapon Shielding Weapon Shielding Grenade Launcher Rocket Launcher Signal Generator [Rating: 11] Favorites ----------- Power Ion Engine Engine Ion Engine Power Core Light Nuclear Core Propulsion Light Treads Treads Light Treads Wheel Compact Wheel Utility High-capacity Storage Unit Device Weight Redist. System Storage High-capacity Storage Unit Processor Targeting Computer Weapon Small Laser Energy Gun Small Laser Ballistic Gun Assault Rifle Launcher Grenade Launcher Build | -11 -10 -10 ------- Run | Scr Mat Min Slots Evolved . | . . . Power . | . . . Propulsion . | . . . Utility . | . . . Weapon . | . . . Parts Attached 36 | 6 22 8 Power 5 | 1 2 2 Engine 4 | 1 2 1 Core 1 | . . 1 Reactor . | . . . Propulsion 11 | 2 5 4 Treads 7 | 2 3 2 Leg . | . . . Wheel 4 | . 2 2 Hover . | . . . Flight . | . . . Utility 12 | 1 11 . Device 9 | . 9 . Storage 2 | 1 1 . Processor 1 | . 1 . Hackware . | . . . Protection . | . . . Artifact . | . . . Weapon 8 | 2 4 2 Energy Gun 5 | 2 2 1 Energy Cannon . | . . . Ballistic Gun 1 | . 1 . Ballistic Cannon . | . . . Launcher 2 | . 1 1 Special Weapon . | . . . Impact Weapon . | . . . Slashing Weapon . | . . . Piercing Weapon . | . . . Special Melee Weapon . | . . . Unidentified Prototypes . | . . . Parts Lost 10 | . 3 7 Power 3 | . 1 2 Propulsion 5 | . 1 4 Utility . | . . . Weapon 2 | . 1 1 Highest Loss Streak 4 | . 2 4 Average Slot Usage (%) 98 | . 98 99 Engine 12 | . 14 7 Core 1 | . . 6 Treads 24 | . 26 14 Wheel 3 | . 1 13 Device 6 | . 8 . Storage 14 | . 14 14 Processor 6 | . 4 14 Energy Gun 21 | . 23 11 Ballistic Gun 5 | . 4 14 Naked Turns . | . . . Heaviest Build 50 | 11 50 50 Greatest Support 46 | 40 46 16 Greatest Overweight (x) 4 | 2 3 4 Average Overweight (x) 1 | . . 3 Largest Inventory Capacity 20 | 8 20 20 Average Capacity 18 | 7 19 20 Most Carried 14 | 3 12 14 Average Carried 8 | 2 8 12 Final Capacity 20 | 8 20 20 Final Carried 12 | 3 12 9 Class Distribution -------------------- 86% | Mutant 13% | Scavenger-Mutant Dominant Class ---------------- Mutant | -10/Materials Mutant | -10/Mines Resources | -11 -10 -10 ----------- Run | Scr Mat Min Matter Collected 841 | 260 398 183 Remotely . | . . . Salvage Created 1303 | 207 759 337 Parts 80 | 18 39 23 Haulers Intercepted 2 | . 2 . Recyclers Shooed . | . . . Parts Field Recycled . | . . . Retrieved Matter . | . . . Parts Self-Destructed . | . . . Prevented . | . . . Kills | -11 -10 -10 ------- Run | Scr Mat Min Combat Hostiles Destroyed 24 | . 14 10 Guns 19 | . 13 6 AOE 4 | . . 4 Classes Destroyed 9 | 3 3 3 Worker 2 | 2 . . Builder 1 | . . 1 Tunneler 5 | 5 . . Hauler 2 | . 2 . Recycler 1 | 1 . . Mechanic 1 | . . 1 Watcher 3 | . 3 . Swarmer 3 | . . 3 Grunt 21 | . 14 7 Thug 1 | . . 1 Best Kill Streak 7 | 4 5 7 Combat Bots Only 5 | . 5 5 Max Kills in Single Turn 2 | 2 1 2 Gunslinging . | . . . Exploded 1 | . . 1 Melee . | . . . Uniques/NPCs Destroyed . | . . . Combat | -11 -10 -10 -------- Run | Scr Mat Min Damage Taken 1478 | . 731 747 Core 256 | . 81 175 Absorbed by Shields . | . . . Core Remaining (%) 100 | 100 . . Volleys Fired 117 | 18 73 26 Largest 2 | 2 2 2 Hottest 90 | 90 90 60 Shots Fired 221 | 33 142 46 Gun 212 | 33 139 40 Cannon . | . . . Launcher 9 | . 3 6 Special . | . . . Kinetic 26 | . 6 20 Thermal 186 | 33 133 20 Explosive 9 | . 3 6 Electromagnetic . | . . . Robot Hit Streak 18 | 6 18 9 Robot Miss Streak 3 | 1 3 1 Penetration Max . | . . . Secondary Targets . | . . . Shots Hit Robots 154 | 25 98 31 Core Hits 73 | 9 39 25 Critical Kills . | . . . Critical Parts Destroyed . | . . . Critical Strikes 5 | 3 2 . Burn 5 | 3 2 . Melee Attacks . | . . . Impact . | . . . Slashing . | . . . Piercing . | . . . Sneak Attacks . | . . . Combat Hostiles . | . . . Follow-up Attacks . | . . . Damage Inflicted 2512 | 282 1180 1050 Guns 1782 | 282 1167 333 Cannons . | . . . Explosions 717 | . . 717 Melee . | . . . Ramming 13 | . 13 . Kinetic 217 | . 46 171 Thermal 1565 | 282 1121 162 Explosive 717 | . . 717 Electromagnetic . | . . . Impact . | . . . Slashing . | . . . Piercing . | . . . Highest Corruption . | . . . Average Corruption . | . . . Corruption Purged . | . . . Overload Shots . | . . . Overflow Damage 11 | . . 11 Projectiles . | . . . Explosions 11 | . . 11 Melee . | . . . Knockbacks . | . . . Impact . | . . . Kinetic . | . . . Secondary . | . . . Self-Inflicted Damage 117 | . 34 83 Shots 6 | . 2 4 Rammed 4 | . 4 . Targets Rammed 4 | . 4 . Kicked . | . . . Crushed . | . . . Highest Temperature 300 | 214 300 79 Average Temperature 68 | 98 70 31 Received Heat Transfer 801 | . 399 402 Effects 1 | . 1 . Energy Bleed 1 | . 1 . Siege Activations . | . . . Robots Corrupted . | . . . Combat Hostiles . | . . . Parts Fried . | . . . Impact Corruptions . | . . . Robots Melted 1 | . 1 . Combat Hostiles 1 | . 1 . Parts Melted 10 | 2 7 1 Heat Transferred 4441 | 978 3088 375 Parts Sabotaged . | . . . Parts Stolen . | . . . Parts Stripped . | . . . Power Chain Reactions . | . . . Missiles Intercepted . | . . . Alert | -11 -10 -10 ------- Run | Scr Mat Min Peak Influence 277 | 40 191 277 Initial 46 | . 26 46 Average 95 | 11 87 172 Maximum Alert Level 1 | . . 1 Low Security (%) 93 | 100 100 58 Level 1 6 | . . 41 Level 2 . | . . . Level 3 . | . . . Level 4 . | . . . Level 5 . | . . . High Security . | . . . Max Security . | . . . Squads Dispatched 6 | . 5 1 Investigation 4 | . 4 . Extermination . | . . . Reinforcement 1 | . 1 . Assault 1 | . . 1 Garrison . | . . . Intercept . | . . . Construction Impeded . | . . . Haulers Reinforced . | . . . Active Scanning Responses . | . . . Cargo Convoy Interrupts . | . . . Stealth | -11 -10 -10 --------- Run | Scr Mat Min Distress Signals 4 | . 4 . Communications Jammed . | . . . Distress Signals . | . . . Times Spotted 40 | . 27 13 Peak Tracking Total 5 | . 5 5 Tactical Retreats 3 | . 2 1 Traps | -11 -10 -10 ------- Run | Scr Mat Min Traps Triggered 1 | . 1 . Indirectly . | . . . Trap Hack Attempts . | . . . Triggered . | . . . Disarmed . | . . . Reprogrammed . | . . . Reused . | . . . Traps Extracted . | . . . Installed . | . . . Triggered . | . . . Machines | -11 -10 -10 ---------- Run | Scr Mat Min Machines Disabled 2 | . 1 1 Max in Single Turn 1 | . 1 1 Machines Sabotaged . | . . . Garrisons Compromised . | . . . Overloaded Fab Kills . | . . . Hacking | -11 -10 -10 --------- Run | Scr Mat Min Machines Accessed 10 | . 10 . Terminals 7 | . 7 . Fabricators . | . . . Repair Stations 1 | . 1 . Recycling Units 2 | . 2 . Scanalyzers . | . . . Garrison Access . | . . . Total Hacks 32 | . 32 . Successful 14 | . 14 . Failed 17 | . 17 . Catastrophic 1 | . 1 . Database Lockouts 1 | . 1 . Manual 20 | . 20 . Terminals 27 | . 27 . Fabricators . | . . . Repair Stations 2 | . 2 . Recycling Units 3 | . 3 . Scanalyzers . | . . . Garrison Access . | . . . Terminal Hacks 5 | . 5 . Prototype ID Bank 2 | . 2 . Locate Traps 2 | . 2 . Zone Layout 1 | . 1 . Fabricator Hacks . | . . . Repair Station Hacks 2 | . 2 . Scan Component 1 | . 1 . Repair 1 | . 1 . Recycling Unit Hacks . | . . . Scanalyzer . | . . . Garrison Access Hacks . | . . . Unauthorized Hacks 7 | . 7 . Terminals 5 | . 5 . Track 4 | . 4 . Operators 1 | . 1 . Fabricators . | . . . Repair Stations . | . . . Recycling Units 2 | . 2 . Tunnel 2 | . 2 . Scanalyzers . | . . . Garrison Access . | . . . Data Cores Recovered . | . . . Used . | . . . Hacking Detections 9 | . 9 . Full Trace Events 1 | . 1 . Feedback Events . | . . . Feedback Blocked . | . . . Robot Schematics Acquired . | . . . Robots Built . | . . . Authchips . | . . . Time . | . . . Total Robot Build Rating . | . . . Part Schematics Acquired . | . . . Parts Built . | . . . Authchips . | . . . Time . | . . . Total Part Build Rating . | . . . Parts Repaired 1 | . 1 . Time 26 | . 26 . Parts Recycled . | . . . Recycled Matter . | . . . Retrieved Matter . | . . . Retrieved Components . | . . . Parts Scanalyzed . | . . . Part Schematics Acquired . | . . . Parts Damaged . | . . . Bothacking | -11 -10 -10 ------------ Run | Scr Mat Min Used RIF Installer . | . . . Robots Hacked . | . . . Non-combat . | . . . Combat . | . . . Robot Hacks Applied . | . . . Relay Couplers Released . | . . . Fabnet Peak Effective % . | . . . Robots Rewired . | . . . Allies Hacked . | . . . Hacks Repelled . | . . . Allies | -11 -10 -10 -------- Run | Scr Mat Min Total Allies 1 | . . 1 Largest Group 1 | . . 1 Highest-Rated Group 31 | . . 31 Highest-Rated Ally 31 | . . 31 Total Orders . | . . . Ally Attacks 7 | . . 7 Total Damage 105 | . . 105 Kills . | . . . Allies Corrupted . | . . . Allies Melted . | . . . Intel | -11 -10 -10 ------- Run | Scr Mat Min Robot Analysis Total . | . . . Derelict Logs Recovered . | . . . Drone Launches . | . . . Drone Recoveries . | . . . Exploration | -11 -10 -10 ------------- Run | Scr Mat Min Turns Passed 1908 | 136 1465 307 Spaces Moved 808 | 49 611 148 Core 9 | 9 . . Treads 528 | 40 488 . Legs . | . . . Wheels 271 | . 123 148 Hover . | . . . Flight . | . . . Fastest Speed 50 | 50 130 140 Average Speed 177 | 151 188 141 Slowest Speed 240 | 160 240 145 Overloaded Moves . | . . . Propulsion Burnouts . | . . . Robots Hopped . | . . . Cave-ins Triggered . | . . . Exploration Rate (%) 49 | 5 98 44 Regions Visited 2 Branch Regions 1 Pre-discovered Areas 2 | . 2 . Known Exits Taken . | . . . Unknown Exits Taken 2 | 1 1 . Scrap Searched 1 | . . 1 Spaces Dug 41 | . 26 15 Terrain Destroyed 66 | . 26 40 Melee . | . . . Projectile . | . . . AOE 66 | . 26 40 Terrain Rammed . | . . . Walls Destroyed . | . . . Machines Disabled . | . . . Actions | -11 -10 -10 --------- Run | Scr Mat Min Total 1048 | 75 773 200 Wait 61 | . 45 16 Move 806 | 48 610 148 Hop . | . . . Pick Up 18 | 3 13 2 Fast Attach 13 | 6 6 1 Attach 8 | . 3 5 Detach 1 | . 1 . Swap 15 | . 13 2 Drop 5 | . 5 . Fire 117 | 18 73 26 Melee . | . . . Ram . | . . . Kick . | . . . Crush 4 | . 4 . Escape Stasis . | . . . Rewire . | . . . Trap . | . . . Miscellaneous . | . . . Route ------- -11/Scrapyard -10/Materials (discovered 4 exits: [*Mat x3] / [*Min]) -10/Mines History --------- Turn | Location | Event 8 | -11/Scrapyard | Discovered new exit (range 15) 137 | -11/Scrapyard | Entered Materials 314 | -10/Materials | Build established: Mutant 491 | -10/Materials | Repaired Med. Laser 591 | -10/Materials | Discovered new exit (range 6) 743 | -10/Materials | Discovered new exit (range 13) 764 | -10/Materials | Central database locked down 852 | -10/Materials | Discovered new exit (range 10) 1229 | -10/Materials | Discovered new exit (range 7) 1602 | -10/Materials | Entered Mines 1603 | -10/Mines | Met a Derelict testing a Signal Generator 1610 | -10/Mines | Found Signal Generator 1621 | -10/Mines | Received a Rocket Launcher from a helpful Derelict 1666 | -10/Mines | Core integrity fell below 50% 1896 | -10/Mines | Core integrity fell below 20% 1909 | -10/Mines | Destroyed self with Rocket Launcher Last Messages --------------- 01700_ Acquired 1 matter. 01700_ K-01 Serf collects debris. 01764_ Ion Engine destroyed. 01769_ G-47 Trooper destroyed. 01773_ Acquired Lgt. Nuclear Core. 01775_ Acquired 23 matter. 01835_ S-10 Pest destroyed. 01844_ Acquired 9 matter. 01883_ Searching scrap... 01883_ Found Med. Battery. 01883_ Found Sml. Laser. 01883_ Found ECM Suite. 01883_ Found 29 Matter. 01901_ Lgt. Nuclear Core destroyed. 01903_ Lgt. Treads destroyed. 01905_ Wheel destroyed. 01907_ Assault Rifle destroyed. 01907_ Critical hit (Burn: +37). 01909_ G-47 Trooper destroyed. 01909_ Seismic Survey Station disabled. Map ----- +----------------------------------------------------+ | #???????????????????????????????????????????? | | #######?????????????????????????????????????? | | #?????????????????????????????????????? | | % ??????????????????????????????? | | ?????????????????????????????? | | # ##### ??????????????????????????????? | | ## ####????????????????????????????????????? | | ?? ##???????????????#???????????????????????? | | ???#???????????????? ???????????????????????? | | ??????##???????????? ???????????????????????? | | ?????? #??????????# ???????????????????????? | | ??????# #??????????# ???????????????????????? | | ??????# #??????????# ???????????????????????? | | ??????# #??????????# #??????????????????????? | | ??????# #????####??# #??????????????????????? | | ??????# #???## ##?# #??????????????????????? | | ??????# #??## ### #??????????????????????? | | #####?# #### #??????#####???????????? | | ###% #??# ##???? #???????????? | | =*##### #### ##### """ #???????????? | | ##%#???# ## %[ """ #???????????? | | ##%#???# !! """ #???????????? | | ###*##### ## #???????????? | | # ## =#?######???????????? | | ## """ ### g%##?????????????????? | | ### """ #?# " *@ ?????????????????? | | ##?# """ #?# " ?????????????????? | | ##??# ## ##?????????????????? | | #???# ## ## ##??????????????????? | | ????######### #### ##???????????????????? | | ????????????# ####??####????????????????????? | | ????????????##??????????????????????????????? | | ????????????????????????????????????????????? | | ????????????????????????????????????????????? | | | | | | | | | | | | | | | | | | | | | | | | | | | | | | | | | +----------------------------------------------------+ Best States ------------- Heat Dissipation 35 Energy Generation 14 Energy Capacity 250 Matter Stores 300 Matter Capacity 300 Sight Range 16 Terrain Scan Density 10 Additional Mass Support 6 Evasion (%) 40 Targeting Accuracy 5 Recoil Reduction 2 Item Schematics ----------------- None Robot Schematics ------------------ None Fabricated ------------ Nothing Alien Tech Used ----------------- None Achievements -------------- None Challenges ------------ None Game ------ Seed CoolingBurstDriver Manual? 0 Play Time 00:17:19 Cumulative 161.0 hours Start 2022.01.05 @ 14:10:14 End 2022.01.10 @ 13:29:10 Sessions 5 Manual Loads 0 Difficulty Rogue Special Mode Winter2021/Sauler Game No. 96 Rogue 96 Adventurer 0 Explorer 0 Win Type - Total 3 Types 2/0/0/1/0/0/0/0/0 Lore% 75 Gallery% 82 Achievement% 58 Wizard Run 0 Options --------- ASCII 1 Keyboard 1 Movement Vi Keybinds 0 Fullscreen 2 Font 18/Cog Map View 76x50 Tactical HUD 1 Map Filters NONE Filters NONE Steam 0 RUN: b11a9158-81ee-42da-9958-31cf40b0d907